[Event "Titled Tuesday Blitz March 29 Early 2022"]
[White "Marcziter, Dmitrii"]
[Black "Lopez Gracia, Fernando"]
[WhiteFideId "13900765"]
[BlackFideId "2207184"]
[WhiteElo "2155"]
[BlackElo "2428"]
[Result "1-0"]
[Round "03"]
[TimeControl "180+1"]
[Date "2022.03.30"]
[WhiteClock "0:00:35"]
[BlackClock "0:00:14"]

1. d4 {[%clk 0:03:00]}  Nf6 {[%clk 0:02:58]} 2. c4 {[%clk 0:02:59]}  e6 {[%clk 0:02:59]} 3. Nf3 {[%clk 0:02:58]}  c5 {[%clk 0:02:58]} 4. d5 {[%clk 0:02:57]}  d6 {[%clk 0:02:58]} 5. dxe6 {[%clk 0:02:56]}  Bxe6 {[%clk 0:02:57]} 6. e3 {[%clk 0:02:55]}  d5 {[%clk 0:02:56]} 7. cxd5 {[%clk 0:02:54]}  Nxd5 {[%clk 0:02:57]} 8. Bb5+ {[%clk 0:02:53]}  Nc6 {[%clk 0:02:57]} 9. O-O {[%clk 0:02:52]}  Be7 {[%clk 0:02:55]} 10. e4 {[%clk 0:02:45]}  Nc7 {[%clk 0:02:53]} 11. Bxc6+ {[%clk 0:02:37]}  bxc6 {[%clk 0:02:53]} 12. Nc3 {[%clk 0:02:36]}  O-O {[%clk 0:02:51]} 13. Qe2 {[%clk 0:02:35]}  Qc8 {[%clk 0:02:30]} 14. h3 {[%clk 0:02:32]}  Qb7 {[%clk 0:02:25]} 15. Bg5 {[%clk 0:02:25]}  Bxg5 {[%clk 0:02:18]} 16. Nxg5 {[%clk 0:02:25]}  h6 {[%clk 0:02:18]} 17. Nf3 {[%clk 0:02:23]}  Rfd8 {[%clk 0:02:17]} 18. Rfd1 {[%clk 0:02:21]}  Nb5 {[%clk 0:02:16]} 19. Qe3 {[%clk 0:02:13]}  Nd4 {[%clk 0:02:11]} 20. Nxd4 {[%clk 0:02:04]}  cxd4 {[%clk 0:02:12]} 21. Rxd4 {[%clk 0:02:04]}  Qxb2 {[%clk 0:02:11]} 22. Rad1 {[%clk 0:02:03]}  Qb6 {[%clk 0:02:03]} 23. Kh2 {[%clk 0:01:44]}  Rxd4 {[%clk 0:02:00]} 24. Qxd4 {[%clk 0:01:43]}  Qc7+ {[%clk 0:01:47]} 25. g3 {[%clk 0:01:39]}  Rb8 {[%clk 0:01:45]} 26. Rd2 {[%clk 0:01:38]}  a5 {[%clk 0:01:43]} 27. e5 {[%clk 0:01:29]}  Kf8 {[%clk 0:01:30]} 28. Qc5+ {[%clk 0:01:27]}  Kg8 {[%clk 0:01:22]} 29. a4 {[%clk 0:01:22]}  Qb6 {[%clk 0:01:07]} 30. Ne4 {[%clk 0:01:12]}  Qxc5 {[%clk 0:01:04]} 31. Nxc5 {[%clk 0:01:12]}  Rb4 {[%clk 0:01:04]} 32. Rd8+ {[%clk 0:01:07]}  Kh7 {[%clk 0:01:04]} 33. Ra8 {[%clk 0:01:07]}  Bd5 {[%clk 0:00:46]} 34. Rxa5 {[%clk 0:01:00]}  Rc4 {[%clk 0:00:46]} 35. Nd3 {[%clk 0:00:54]}  Rc3 {[%clk 0:00:43]} 36. Nf4 {[%clk 0:00:52]}  Bf3 {[%clk 0:00:43]} 37. Ra7 {[%clk 0:00:49]}  Rc1 {[%clk 0:00:39]} 38. g4 {[%clk 0:00:49]}  Rc4 {[%clk 0:00:29]} 39. Kg3 {[%clk 0:00:47]}  Bd1 {[%clk 0:00:24]} 40. a5 {[%clk 0:00:45]}  g5 {[%clk 0:00:21]} 41. Nh5 {[%clk 0:00:44]}  Rc3+ {[%clk 0:00:17]} 42. Kh2 {[%clk 0:00:41]}  Kg8 {[%clk 0:00:17]} 43. Ra8+ {[%clk 0:00:39]}  Kh7 {[%clk 0:00:17]} 44. Nf6+ {[%clk 0:00:35]}  Kg7 {[%clk 0:00:14]} 45. Rg8# {[%clk 0:00:35]} 1-0


[Site "https://www.chess.com"]

[Event "Titled Tuesday Blitz March 29 Early 2022"]
[White "Martin Carmona, Gaston Manuel"]
[Black "Lagunov, Evgenij"]
[WhiteFideId "22284567"]
[BlackFideId "4125363"]
[WhiteElo "2161"]
[BlackElo "2200"]
[Result "1-0"]
[Round "03"]
[TimeControl "180+1"]
[Date "2022.03.30"]
[WhiteClock "0:00:21"]
[BlackClock "0:00:32"]

1. c4 {[%clk 0:03:00]}  e6 {[%clk 0:02:59]} 2. g3 {[%clk 0:03:00]}  d5 {[%clk 0:03:00]} 3. Bg2 {[%clk 0:03:01]}  Nf6 {[%clk 0:03:00]} 4. Nf3 {[%clk 0:03:01]}  Be7 {[%clk 0:03:00]} 5. d4 {[%clk 0:03:02]}  O-O {[%clk 0:02:57]} 6. O-O {[%clk 0:03:03]}  dxc4 {[%clk 0:02:57]} 7. Qc2 {[%clk 0:03:03]}  a6 {[%clk 0:02:56]} 8. a4 {[%clk 0:03:04]}  Bd7 {[%clk 0:02:54]} 9. Qxc4 {[%clk 0:03:04]}  Bc6 {[%clk 0:02:54]} 10. Bf4 {[%clk 0:03:05]}  Nbd7 {[%clk 0:02:53]} 11. Nc3 {[%clk 0:03:03]}  Nb6 {[%clk 0:02:52]} 12. Qd3 {[%clk 0:02:46]}  Nbd5 {[%clk 0:02:51]} 13. Bg5 {[%clk 0:02:45]}  Nxc3 {[%clk 0:02:47]} 14. bxc3 {[%clk 0:02:46]}  Be4 {[%clk 0:02:45]} 15. Qe3 {[%clk 0:02:46]}  Bf5 {[%clk 0:02:36]} 16. Nh4 {[%clk 0:02:12]}  Nd5 {[%clk 0:02:18]} 17. Bxe7 {[%clk 0:02:12]}  Nxe3 {[%clk 0:02:18]} 18. Bxd8 {[%clk 0:02:12]}  Nxg2 {[%clk 0:02:18]} 19. Nxf5 {[%clk 0:02:02]}  Rfxd8 {[%clk 0:02:08]} 20. Nxg7 {[%clk 0:01:41]}  Nf4 {[%clk 0:02:06]} 21. gxf4 {[%clk 0:01:39]}  Kxg7 {[%clk 0:02:05]} 22. a5 {[%clk 0:01:23]}  b5 {[%clk 0:01:59]} 23. axb6 {[%clk 0:01:08]}  cxb6 {[%clk 0:01:58]} 24. Rfb1 {[%clk 0:01:09]}  b5 {[%clk 0:01:57]} 25. Kg2 {[%clk 0:01:05]}  Rdc8 {[%clk 0:01:54]} 26. Ra3 {[%clk 0:01:05]}  Kf6 {[%clk 0:01:50]} 27. Kf3 {[%clk 0:01:05]}  Ke7 {[%clk 0:01:35]} 28. Ke4 {[%clk 0:01:04]}  Kd6 {[%clk 0:01:33]} 29. Rba1 {[%clk 0:00:58]}  Rc6 {[%clk 0:01:29]} 30. f5 {[%clk 0:00:51]}  exf5+ {[%clk 0:01:16]} 31. Kxf5 {[%clk 0:00:52]}  Kd5 {[%clk 0:01:16]} 32. e4+ {[%clk 0:00:50]}  Kc4 {[%clk 0:01:15]} 33. d5 {[%clk 0:00:50]}  Rb6 {[%clk 0:01:15]} 34. f4 {[%clk 0:00:45]}  Rd6 {[%clk 0:01:01]} 35. Rd1 {[%clk 0:00:28]}  a5 {[%clk 0:00:57]} 36. Rd4+ {[%clk 0:00:28]}  Kc5 {[%clk 0:00:57]} 37. Rd2 {[%clk 0:00:24]}  Raa6 {[%clk 0:00:48]} 38. Ra1 {[%clk 0:00:21]}  a4 {[%clk 0:00:44]} 39. Rad1 {[%clk 0:00:21]}  a3 {[%clk 0:00:38]} 40. e5 {[%clk 0:00:21]}  Rd8 {[%clk 0:00:38]} 41. d6 {[%clk 0:00:21]}  a2 {[%clk 0:00:37]} 42. Ra1 {[%clk 0:00:21]}  Ra3 {[%clk 0:00:34]} 43. Rdxa2 {[%clk 0:00:20]}  Rxc3 {[%clk 0:00:34]} 44. Ra8 {[%clk 0:00:19]}  b4 {[%clk 0:00:32]} 45. Rxd8 {[%clk 0:00:18]}  b3 {[%clk 0:00:31]} 46. Rc8+ {[%clk 0:00:19]}  Kb4 {[%clk 0:00:31]} 47. Rxc3 {[%clk 0:00:20]}  Kxc3 {[%clk 0:00:32]} 48. Rb1 {[%clk 0:00:20]}  Kc2 {[%clk 0:00:31]} 49. Rxb3 {[%clk 0:00:20]}  Kxb3 {[%clk 0:00:32]} 50. d7 {[%clk 0:00:21]} 1-0


[Site "https://www.chess.com"]

[Event "Titled Tuesday Blitz March 29 Early 2022"]
[White "Maung, Maung Kyaw Zaw Hein"]
[Black "Rastbod, Ali"]
[WhiteFideId "13001698"]
[BlackFideId "12567477"]
[WhiteElo "1785"]
[BlackElo "2200"]
[Result "0-1"]
[Round "03"]
[TimeControl "180+1"]
[Date "2022.03.30"]
[WhiteClock "0:00:13"]
[BlackClock "0:00:43"]

1. Nf3 {[%clk 0:03:00]}  g6 {[%clk 0:02:57]} 2. c4 {[%clk 0:03:00]}  Bg7 {[%clk 0:02:57]} 3. d4 {[%clk 0:03:00]}  d6 {[%clk 0:02:58]} 4. Nc3 {[%clk 0:02:59]}  Nc6 {[%clk 0:02:57]} 5. e4 {[%clk 0:02:55]}  Bg4 {[%clk 0:02:54]} 6. Be3 {[%clk 0:02:55]}  e5 {[%clk 0:02:53]} 7. dxe5 {[%clk 0:02:46]}  Nxe5 {[%clk 0:02:47]} 8. Be2 {[%clk 0:02:24]}  Nxf3+ {[%clk 0:02:41]} 9. Bxf3 {[%clk 0:02:12]}  Be6 {[%clk 0:02:41]} 10. Qd3 {[%clk 0:02:09]}  Ne7 {[%clk 0:02:38]} 11. O-O {[%clk 0:02:05]}  Nc6 {[%clk 0:02:37]} 12. Be2 {[%clk 0:02:02]}  O-O {[%clk 0:02:32]} 13. Nd5 {[%clk 0:01:46]}  Ne5 {[%clk 0:02:24]} 14. Qc2 {[%clk 0:01:45]}  c6 {[%clk 0:02:24]} 15. Nf4 {[%clk 0:01:42]}  Ng4 {[%clk 0:01:52]} 16. Bxg4 {[%clk 0:01:35]}  Bxg4 {[%clk 0:01:53]} 17. f3 {[%clk 0:01:35]}  Bd7 {[%clk 0:01:52]} 18. Rad1 {[%clk 0:01:33]}  Qc7 {[%clk 0:01:48]} 19. Qd2 {[%clk 0:01:12]}  Be5 {[%clk 0:01:40]} 20. Bd4 {[%clk 0:01:08]}  Rad8 {[%clk 0:01:36]} 21. Bxe5 {[%clk 0:00:59]}  dxe5 {[%clk 0:01:37]} 22. Nd3 {[%clk 0:01:00]}  Be6 {[%clk 0:01:37]} 23. Qc3 {[%clk 0:01:00]}  f6 {[%clk 0:01:32]} 24. Kh1 {[%clk 0:00:57]}  Qb6 {[%clk 0:01:17]} 25. c5 {[%clk 0:00:54]}  Qc7 {[%clk 0:01:06]} 26. Nb4 {[%clk 0:00:41]}  a5 {[%clk 0:00:56]} 27. Nc2 {[%clk 0:00:39]}  Bxa2 {[%clk 0:00:49]} 28. b3 {[%clk 0:00:31]}  Qf7 {[%clk 0:00:48]} 29. Qxa5 {[%clk 0:00:24]}  Rxd1 {[%clk 0:00:47]} 30. Rxd1 {[%clk 0:00:24]}  Bxb3 {[%clk 0:00:48]} 31. Rd2 {[%clk 0:00:19]}  Qc4 {[%clk 0:00:44]} 32. Ne1 {[%clk 0:00:13]}  Qf1# {[%clk 0:00:43]} 0-1


[Site "https://www.chess.com"]

[Event "Titled Tuesday Blitz March 29 Early 2022"]
[White "Migot, Tangi"]
[Black "Babazada, Khazar"]
[WhiteFideId "662445"]
[BlackFideId "13413554"]
[WhiteElo "2531"]
[BlackElo "2418"]
[Result "0-1"]
[Round "03"]
[TimeControl "180+1"]
[Date "2022.03.30"]
[WhiteClock "0:00:09"]
[BlackClock "0:00:11"]

1. e4 {[%clk 0:03:00]}  e5 {[%clk 0:03:00]} 2. Nf3 {[%clk 0:03:01]}  Nc6 {[%clk 0:03:00]} 3. Bc4 {[%clk 0:03:02]}  Bc5 {[%clk 0:02:59]} 4. d3 {[%clk 0:03:02]}  Nf6 {[%clk 0:02:57]} 5. a4 {[%clk 0:03:02]}  d6 {[%clk 0:02:57]} 6. a5 {[%clk 0:03:01]}  a6 {[%clk 0:02:57]} 7. c3 {[%clk 0:03:01]}  h6 {[%clk 0:02:56]} 8. h3 {[%clk 0:03:00]}  Ba7 {[%clk 0:02:54]} 9. Be3 {[%clk 0:02:57]}  O-O {[%clk 0:02:54]} 10. O-O {[%clk 0:02:54]}  Ne7 {[%clk 0:02:51]} 11. Nbd2 {[%clk 0:02:52]}  Ng6 {[%clk 0:02:49]} 12. d4 {[%clk 0:02:52]}  c6 {[%clk 0:02:42]} 13. Qc2 {[%clk 0:02:42]}  Qe7 {[%clk 0:02:39]} 14. Rfe1 {[%clk 0:02:40]}  Bd7 {[%clk 0:02:30]} 15. Bf1 {[%clk 0:02:40]}  Nh5 {[%clk 0:02:16]} 16. Nc4 {[%clk 0:02:34]}  Qf6 {[%clk 0:02:09]} 17. dxe5 {[%clk 0:02:06]}  dxe5 {[%clk 0:02:07]} 18. Nh2 {[%clk 0:01:57]}  Nhf4 {[%clk 0:01:51]} 19. Rad1 {[%clk 0:01:51]}  Be6 {[%clk 0:01:47]} 20. Bxa7 {[%clk 0:01:47]}  Rxa7 {[%clk 0:01:47]} 21. Nb6 {[%clk 0:01:47]}  Qg5 {[%clk 0:01:39]} 22. Kh1 {[%clk 0:01:40]}  Qh5 {[%clk 0:01:35]} 23. Be2 {[%clk 0:01:30]}  Qg5 {[%clk 0:01:23]} 24. Rg1 {[%clk 0:01:24]}  Bb3 {[%clk 0:00:49]} 25. Qxb3 {[%clk 0:01:18]}  Nxe2 {[%clk 0:00:49]} 26. Nf3 {[%clk 0:01:05]}  Qh5 {[%clk 0:00:49]} 27. Rge1 {[%clk 0:01:04]}  Nef4 {[%clk 0:00:48]} 28. Ng1 {[%clk 0:01:00]}  Nh4 {[%clk 0:00:31]} 29. g3 {[%clk 0:00:56]}  Nxh3 {[%clk 0:00:29]} 30. gxh4 {[%clk 0:00:35]}  Nxf2+ {[%clk 0:00:29]} 31. Kg2 {[%clk 0:00:35]}  Nxd1 {[%clk 0:00:29]} 32. Qxd1 {[%clk 0:00:34]}  Qxh4 {[%clk 0:00:29]} 33. Nf3 {[%clk 0:00:33]}  Qg4+ {[%clk 0:00:30]} 34. Kf2 {[%clk 0:00:33]}  f5 {[%clk 0:00:27]} 35. Rg1 {[%clk 0:00:28]}  Qxe4 {[%clk 0:00:25]} 36. Qd7 {[%clk 0:00:20]}  Rf7 {[%clk 0:00:19]} 37. Qe8+ {[%clk 0:00:17]}  Rf8 {[%clk 0:00:20]} 38. Qe6+ {[%clk 0:00:17]}  Kh8 {[%clk 0:00:18]} 39. Qe7 {[%clk 0:00:15]}  Rg8 {[%clk 0:00:17]} 40. Rg6 {[%clk 0:00:13]}  f4 {[%clk 0:00:12]} 41. Qe6 {[%clk 0:00:12]}  Qe3+ {[%clk 0:00:11]} 42. Kg2 {[%clk 0:00:11]}  Qe2+ {[%clk 0:00:10]} 43. Kg1 {[%clk 0:00:09]}  Qxf3 {[%clk 0:00:10]} 44. Rxh6+ {[%clk 0:00:09]}  gxh6+ {[%clk 0:00:11]} 0-1


[Site "https://www.chess.com"]

[Event "Titled Tuesday Blitz March 29 Early 2022"]
[White "Miszler, Levente"]
[Black "Bashirli, Saadat"]
[WhiteFideId "763276"]
[BlackFideId "13429990"]
[WhiteElo "1966"]
[BlackElo "1173"]
[Result "1-0"]
[Round "03"]
[TimeControl "180+1"]
[Date "2022.03.30"]
[WhiteClock "0:00:03"]
[BlackClock "0:00:24"]

1. d4 {[%clk 0:03:00]}  d5 {[%clk 0:02:59]} 2. c4 {[%clk 0:03:00]}  e6 {[%clk 0:02:56]} 3. Nc3 {[%clk 0:02:59]}  c6 {[%clk 0:02:56]} 4. Nf3 {[%clk 0:02:52]}  dxc4 {[%clk 0:02:55]} 5. e4 {[%clk 0:02:46]}  b5 {[%clk 0:02:54]} 6. e5 {[%clk 0:02:39]}  Bb4 {[%clk 0:02:53]} 7. Be3 {[%clk 0:02:35]}  Ne7 {[%clk 0:02:49]} 8. Be2 {[%clk 0:02:35]}  Nd7 {[%clk 0:02:46]} 9. O-O {[%clk 0:02:34]}  O-O {[%clk 0:02:45]} 10. Ne4 {[%clk 0:02:33]}  Nf5 {[%clk 0:02:42]} 11. Bd2 {[%clk 0:02:30]}  Bxd2 {[%clk 0:02:38]} 12. Qxd2 {[%clk 0:02:31]}  Nb6 {[%clk 0:02:30]} 13. Rad1 {[%clk 0:02:22]}  Nd5 {[%clk 0:02:24]} 14. Nc5 {[%clk 0:02:06]}  Bd7 {[%clk 0:02:20]} 15. Ng5 {[%clk 0:02:05]}  a5 {[%clk 0:02:05]} 16. Nge4 {[%clk 0:02:03]}  Qe7 {[%clk 0:02:01]} 17. g4 {[%clk 0:01:58]}  Nh6 {[%clk 0:01:56]} 18. f4 {[%clk 0:01:49]}  f6 {[%clk 0:01:51]} 19. exf6 {[%clk 0:01:21]}  gxf6 {[%clk 0:01:47]} 20. f5 {[%clk 0:01:19]}  exf5 {[%clk 0:01:44]} 21. Qxh6 {[%clk 0:01:05]}  fxg4 {[%clk 0:01:35]} 22. Kh1 {[%clk 0:00:47]}  f5 {[%clk 0:01:28]} 23. Ng5 {[%clk 0:00:34]}  Rf6 {[%clk 0:01:22]} 24. Qh4 {[%clk 0:00:33]}  Rd8 {[%clk 0:01:16]} 25. Rde1 {[%clk 0:00:25]}  Ne3 {[%clk 0:01:11]} 26. Bxc4+ {[%clk 0:00:16]}  Kh8 {[%clk 0:01:06]} 27. Rxe3 {[%clk 0:00:15]}  Qg7 {[%clk 0:01:03]} 28. Bd3 {[%clk 0:00:10]}  h6 {[%clk 0:01:02]} 29. Nce6 {[%clk 0:00:08]}  Qe7 {[%clk 0:00:57]} 30. Nxd8 {[%clk 0:00:06]}  Qxe3 {[%clk 0:00:57]} 31. Nf3 {[%clk 0:00:04]}  Qe7 {[%clk 0:00:50]} 32. Ne5 {[%clk 0:00:04]}  Kg7 {[%clk 0:00:47]} 33. Ndf7 {[%clk 0:00:03]}  Be6 {[%clk 0:00:43]} 34. Qh5 {[%clk 0:00:03]}  Bd5+ {[%clk 0:00:42]} 35. Kg1 {[%clk 0:00:03]}  Rxf7 {[%clk 0:00:41]} 36. Nxf7 {[%clk 0:00:04]}  Bxf7 {[%clk 0:00:41]} 37. Qxf5 {[%clk 0:00:04]}  Qe3+ {[%clk 0:00:41]} 38. Rf2 {[%clk 0:00:04]}  Qe1+ {[%clk 0:00:35]} 39. Rf1 {[%clk 0:00:04]}  Qe3+ {[%clk 0:00:34]} 40. Qf2 {[%clk 0:00:05]}  Qe7 {[%clk 0:00:29]} 41. Qxf7+ {[%clk 0:00:05]}  Qxf7 {[%clk 0:00:29]} 42. Rxf7+ {[%clk 0:00:05]}  Kxf7 {[%clk 0:00:28]} 43. Be4 {[%clk 0:00:06]}  Ke6 {[%clk 0:00:23]} 44. Bxc6 {[%clk 0:00:06]}  Kd6 {[%clk 0:00:22]} 45. d5 {[%clk 0:00:06]}  Ke5 {[%clk 0:00:21]} 46. Kf2 {[%clk 0:00:07]}  Kd6 {[%clk 0:00:21]} 47. Kg3 {[%clk 0:00:07]}  h5 {[%clk 0:00:21]} 48. Kh4 {[%clk 0:00:07]}  Kc5 {[%clk 0:00:21]} 49. Kxh5 {[%clk 0:00:07]}  b4 {[%clk 0:00:21]} 50. Kxg4 {[%clk 0:00:07]}  a4 {[%clk 0:00:21]} 51. h4 {[%clk 0:00:07]}  Kd4 {[%clk 0:00:22]} 52. d6 {[%clk 0:00:07]}  Kd3 {[%clk 0:00:23]} 53. d7 {[%clk 0:00:07]}  Kc2 {[%clk 0:00:24]} 54. d8=Q {[%clk 0:00:08]}  Kxb2 {[%clk 0:00:25]} 55. Bxa4 {[%clk 0:00:08]}  Kxa2 {[%clk 0:00:26]} 56. Qd2+ {[%clk 0:00:07]}  Ka1 {[%clk 0:00:26]} 57. Qc1+ {[%clk 0:00:06]}  Ka2 {[%clk 0:00:25]} 58. Qc2+ {[%clk 0:00:07]}  Ka1 {[%clk 0:00:25]} 59. Qc4 {[%clk 0:00:04]}  b3 {[%clk 0:00:24]} 60. Bxb3 {[%clk 0:00:04]}  Kb2 {[%clk 0:00:24]} 61. Bd1 {[%clk 0:00:04]}  Ka3 {[%clk 0:00:24]} 62. Qb3# {[%clk 0:00:03]} 1-0


[Site "https://www.chess.com"]

[Event "Titled Tuesday Blitz March 29 Early 2022"]
[White "Moksh Amit Doshi"]
[Black "Papp, Petra"]
[WhiteFideId "25064967"]
[BlackFideId "739049"]
[WhiteElo "2245"]
[BlackElo "2259"]
[Result "1-0"]
[Round "03"]
[TimeControl "180+1"]
[Date "2022.03.30"]
[WhiteClock "0:01:37"]
[BlackClock "0:00:58"]

1. d4 {[%clk 0:02:47]}  Nf6 {[%clk 0:02:58]} 2. c4 {[%clk 0:02:47]}  c5 {[%clk 0:02:58]} 3. d5 {[%clk 0:02:47]}  b5 {[%clk 0:02:58]} 4. cxb5 {[%clk 0:02:48]}  a6 {[%clk 0:02:59]} 5. bxa6 {[%clk 0:02:49]}  d6 {[%clk 0:02:59]} 6. Nc3 {[%clk 0:02:49]}  g6 {[%clk 0:02:59]} 7. e4 {[%clk 0:02:49]}  Bxa6 {[%clk 0:02:59]} 8. Bxa6 {[%clk 0:02:48]}  Nxa6 {[%clk 0:02:57]} 9. Nf3 {[%clk 0:02:48]}  Bg7 {[%clk 0:02:58]} 10. O-O {[%clk 0:02:48]}  O-O {[%clk 0:02:58]} 11. h3 {[%clk 0:02:45]}  Qb6 {[%clk 0:02:57]} 12. Rb1 {[%clk 0:02:35]}  Rfb8 {[%clk 0:02:55]} 13. Bg5 {[%clk 0:02:32]}  Nc7 {[%clk 0:02:46]} 14. e5 {[%clk 0:02:19]}  dxe5 {[%clk 0:02:33]} 15. Nxe5 {[%clk 0:02:20]}  h6 {[%clk 0:02:31]} 16. Bxf6 {[%clk 0:02:17]}  Bxf6 {[%clk 0:02:19]} 17. Nd7 {[%clk 0:02:17]}  Qb4 {[%clk 0:02:15]} 18. Nxb8 {[%clk 0:02:17]}  Rxb8 {[%clk 0:02:16]} 19. d6 {[%clk 0:02:09]}  Ne6 {[%clk 0:02:08]} 20. Nd5 {[%clk 0:02:07]}  Qb7 {[%clk 0:02:06]} 21. dxe7 {[%clk 0:01:58]}  Bxe7 {[%clk 0:02:04]} 22. Nxe7+ {[%clk 0:01:59]}  Qxe7 {[%clk 0:02:03]} 23. Re1 {[%clk 0:01:59]}  Qc7 {[%clk 0:01:56]} 24. Qd2 {[%clk 0:01:51]}  Kh7 {[%clk 0:01:54]} 25. Rbc1 {[%clk 0:01:52]}  Qa7 {[%clk 0:01:46]} 26. b3 {[%clk 0:01:49]}  Rd8 {[%clk 0:01:46]} 27. Qc3 {[%clk 0:01:46]}  Qb7 {[%clk 0:01:22]} 28. Qf6 {[%clk 0:01:40]}  Rd7 {[%clk 0:01:21]} 29. Rcd1 {[%clk 0:01:39]}  Nd4 {[%clk 0:01:18]} 30. Re8 {[%clk 0:01:38]}  Nf3+ {[%clk 0:01:04]} 31. gxf3 {[%clk 0:01:37]}  Rxd1+ {[%clk 0:00:58]} 32. Kg2 {[%clk 0:01:37]} 1-0


[Site "https://www.chess.com"]

[Event "Titled Tuesday Blitz March 29 Early 2022"]
[White "Molina, Roberto Junio Brito"]
[Black "Brodowski, Piotr"]
[WhiteFideId "2109450"]
[BlackFideId "1124480"]
[WhiteElo "2432"]
[BlackElo "2422"]
[Result "0-1"]
[Round "03"]
[TimeControl "180+1"]
[Date "2022.03.29"]
[WhiteClock "0:02:09"]
[BlackClock "0:01:51"]

1. d4 {[%clk 0:03:00]}  c5 {[%clk 0:02:59]} 2. d5 {[%clk 0:03:00]}  d6 {[%clk 0:02:58]} 3. e4 {[%clk 0:03:00]}  Nf6 {[%clk 0:02:57]} 4. Nc3 {[%clk 0:02:59]}  g6 {[%clk 0:02:57]} 5. h3 {[%clk 0:02:56]}  Bg7 {[%clk 0:02:57]} 6. Nf3 {[%clk 0:02:54]}  O-O {[%clk 0:02:55]} 7. Be2 {[%clk 0:02:53]}  Na6 {[%clk 0:02:55]} 8. O-O {[%clk 0:02:53]}  Nc7 {[%clk 0:02:56]} 9. a4 {[%clk 0:02:53]}  b6 {[%clk 0:02:55]} 10. Re1 {[%clk 0:02:52]}  Bb7 {[%clk 0:02:56]} 11. Bc4 {[%clk 0:02:52]}  a6 {[%clk 0:02:53]} 12. Bf4 {[%clk 0:02:51]}  Re8 {[%clk 0:02:06]} 13. Qd2 {[%clk 0:02:47]}  e5 {[%clk 0:01:52]} 14. dxe6 {[%clk 0:02:29]}  Nxe6 {[%clk 0:01:52]} 15. Bxd6 {[%clk 0:02:27]}  Nd4 {[%clk 0:01:52]} 16. Bg3 {[%clk 0:02:09]}  Nxf3+ {[%clk 0:01:51]} 0-1


[Site "https://www.chess.com"]

[Event "Titled Tuesday Blitz March 29 Early 2022"]
[White "Mortazavi, Ali"]
[Black "Xu, Yi"]
[WhiteFideId "401323"]
[BlackFideId "8605564"]
[WhiteElo "2339"]
[BlackElo "2471"]
[Result "1-0"]
[Round "03"]
[TimeControl "180+1"]
[Date "2022.03.29"]
[WhiteClock "0:00:06"]
[BlackClock "0:00:09"]

1. Nf3 {[%clk 0:03:00]}  d5 {[%clk 0:02:59]} 2. g3 {[%clk 0:03:01]}  Nd7 {[%clk 0:02:59]} 3. Bg2 {[%clk 0:03:00]}  e5 {[%clk 0:02:59]} 4. d3 {[%clk 0:03:00]}  Ngf6 {[%clk 0:02:58]} 5. O-O {[%clk 0:03:01]}  Bd6 {[%clk 0:02:59]} 6. c4 {[%clk 0:03:00]}  c6 {[%clk 0:02:52]} 7. cxd5 {[%clk 0:03:00]}  cxd5 {[%clk 0:02:52]} 8. Nc3 {[%clk 0:03:00]}  O-O {[%clk 0:02:49]} 9. e4 {[%clk 0:03:01]}  d4 {[%clk 0:02:47]} 10. Nb5 {[%clk 0:02:55]}  Bb8 {[%clk 0:02:37]} 11. Nh4 {[%clk 0:02:48]}  a6 {[%clk 0:02:34]} 12. Na3 {[%clk 0:02:48]}  Nc5 {[%clk 0:02:24]} 13. b4 {[%clk 0:02:35]}  Ne6 {[%clk 0:02:09]} 14. Nc4 {[%clk 0:02:35]}  b5 {[%clk 0:02:04]} 15. Na5 {[%clk 0:02:34]}  Bc7 {[%clk 0:02:04]} 16. Bd2 {[%clk 0:02:19]}  Re8 {[%clk 0:01:58]} 17. Rc1 {[%clk 0:02:10]}  Bd7 {[%clk 0:01:41]} 18. Nf5 {[%clk 0:01:56]}  Bxa5 {[%clk 0:01:18]} 19. bxa5 {[%clk 0:01:56]}  Nf8 {[%clk 0:01:14]} 20. Nd6 {[%clk 0:01:42]}  Bg4 {[%clk 0:01:11]} 21. f3 {[%clk 0:01:30]}  Bxf3 {[%clk 0:01:11]} 22. Rxf3 {[%clk 0:01:15]}  Qxd6 {[%clk 0:01:10]} 23. Qb3 {[%clk 0:01:16]}  Rac8 {[%clk 0:01:04]} 24. Rcf1 {[%clk 0:01:15]}  Ne6 {[%clk 0:00:55]} 25. Bh3 {[%clk 0:01:16]}  Qe7 {[%clk 0:00:47]} 26. Kg2 {[%clk 0:01:05]}  Rc6 {[%clk 0:00:46]} 27. Bb4 {[%clk 0:01:03]}  Qd8 {[%clk 0:00:45]} 28. Rf5 {[%clk 0:00:53]}  Nc5 {[%clk 0:00:35]} 29. Qd1 {[%clk 0:00:50]}  Ncd7 {[%clk 0:00:32]} 30. R1f2 {[%clk 0:00:35]}  Qc7 {[%clk 0:00:32]} 31. g4 {[%clk 0:00:30]}  Rc1 {[%clk 0:00:32]} 32. Qf3 {[%clk 0:00:30]}  h6 {[%clk 0:00:23]} 33. g5 {[%clk 0:00:30]}  hxg5 {[%clk 0:00:23]} 34. Rxg5 {[%clk 0:00:30]}  Rc2 {[%clk 0:00:21]} 35. Bxd7 {[%clk 0:00:19]}  Rxf2+ {[%clk 0:00:21]} 36. Qxf2 {[%clk 0:00:20]}  Nxd7 {[%clk 0:00:20]} 37. Qg3 {[%clk 0:00:17]}  Qc2+ {[%clk 0:00:16]} 38. Kh3 {[%clk 0:00:17]}  Nf6 {[%clk 0:00:08]} 39. Rxg7+ {[%clk 0:00:16]}  Kh8 {[%clk 0:00:08]} 40. Rg5 {[%clk 0:00:11]}  Nh7 {[%clk 0:00:05]} 41. Rh5 {[%clk 0:00:09]}  Qe2 {[%clk 0:00:02]} 42. Rh4 {[%clk 0:00:07]}  Qf1+ {[%clk 0:00:03]} 43. Qg2 {[%clk 0:00:06]}  Qxd3+ {[%clk 0:00:03]} 44. Qg3 {[%clk 0:00:05]}  Qf1+ {[%clk 0:00:03]} 45. Qg2 {[%clk 0:00:05]}  Qxg2+ {[%clk 0:00:04]} 46. Kxg2 {[%clk 0:00:06]}  Kg7 {[%clk 0:00:03]} 47. Kf2 {[%clk 0:00:05]}  Kf6 {[%clk 0:00:04]} 48. Rh6+ {[%clk 0:00:05]}  Kg7 {[%clk 0:00:03]} 49. Rxa6 {[%clk 0:00:05]}  Rf8 {[%clk 0:00:04]} 50. Bxf8+ {[%clk 0:00:03]}  Nxf8 {[%clk 0:00:04]} 51. Ra8 {[%clk 0:00:04]}  Ne6 {[%clk 0:00:05]} 52. a6 {[%clk 0:00:05]}  Nc5 {[%clk 0:00:04]} 53. a7 {[%clk 0:00:05]}  Nxe4+ {[%clk 0:00:05]} 54. Ke1 {[%clk 0:00:04]}  d3 {[%clk 0:00:06]} 55. Rd8 {[%clk 0:00:04]}  d2+ {[%clk 0:00:06]} 56. Rxd2 {[%clk 0:00:05]}  Nxd2 {[%clk 0:00:07]} 57. Kxd2 {[%clk 0:00:05]}  e4 {[%clk 0:00:07]} 58. a8=Q {[%clk 0:00:06]}  f5 {[%clk 0:00:07]} 59. Qd5 {[%clk 0:00:05]}  Kf6 {[%clk 0:00:07]} 60. Ke3 {[%clk 0:00:05]}  Kg5 {[%clk 0:00:08]} 61. Qe5 {[%clk 0:00:05]}  Kg4 {[%clk 0:00:09]} 62. Qf4+ {[%clk 0:00:06]}  Kh5 {[%clk 0:00:09]} 63. Qxf5+ {[%clk 0:00:06]}  Kh4 {[%clk 0:00:10]} 64. Qg6 {[%clk 0:00:06]}  b4 {[%clk 0:00:10]} 65. Kf4 {[%clk 0:00:06]}  b3 {[%clk 0:00:09]} 66. Qg4# {[%clk 0:00:06]} 1-0


[Site "https://www.chess.com"]